bitfinex/quotes_SOLUSD_20260115
["timestamp","ask_amount","ask_price","bid_price","bid_amount"]
[1768478427812,0.45085709,144.68,144.65,6.91287184]
[1768478428004,0.45085709,144.68,144.65,7.3764325]
[1768478428529,0.45085709,144.68,144.65,11.39017756]
[1768478429318,0.45085709,144.68,144.65,7.3764325]
[1768478429623,0.45085709,144.68,144.65,11.39017756]
[1768478430721,0.45085709,144.69,144.66,7.3761839]
[1768478431512,0.45085709,144.69,144.66,6.91262324]
[1768478432523,0.45085709,144.68,144.63,0.46356066]
[1768478432708,0.45085709,144.67,144.64,6.9136792]
[1768478433920,0.45085709,144.67,144.64,10.92742426]
[1768478436102,0.45085709,144.67,144.64,11.39098492]
[1768478436627,0.45085709,144.67,144.64,7.37723986]
[1768478436923,0.45085709,144.68,144.65,0.46356066]
[1768478437125,0.45085709,144.68,144.65,4.47730572]
[1768478437328,0.45085709,144.68,144.65,0.46356066]
[1768478439729,0.45085709,144.69,144.66,0.46356066]
[1768478439909,0.45085709,144.69,144.65,11.39042053]
[1768478441635,0.45085709,144.69,144.65,7.37667547]
[1768478441820,0.45085709,144.7,144.67,0.46356066]
[1768478442030,0.45085709,144.71,144.67,4.01374506]
[1768478442922,0.45085709,144.71,144.64,24.19800884]
[1768478442923,0.45085709,144.71,144.68,4.01374506]
[1768478443828,0.45085709,144.71,144.68,10.92526626]
[1768478444131,0.45085709,144.71,144.68,7.37508186]
[1768478444438,0.45085709,144.72,144.69,0.46356066]
[1768478444618,0.45085709,144.72,144.69,4.47730572]
[1768478444814,0.45085709,144.72,144.69,11.38863187]
[1768478447516,0.45085709,144.74,144.71,0.46356066]
[1768478447817,0.45085709,144.74,144.71,4.47730572]
[1768478448938,0.45085709,144.74,144.71,4.01374506]
[1768478449735,0.45085709,144.74,144.71,4.47730572]
[1768478450414,0.45085709,144.74,144.71,4.01374506]
[1768478451054,0.45085709,144.74,144.71,4.48978735]
[1768478451541,0.45159633,144.75,144.72,4.48978735]
[1768478452038,0.45159633,144.75,144.72,4.01374506]
[1768478452733,4.01374506,144.74,144.69,0.47604229]
[1768478452917,0.45159633,144.73,144.69,4.48978735]
[1768478453325,0.45159633,144.73,144.69,4.01374506]
[1768478453525,0.45159633,144.72,144.68,4.48978735]
[1768478453727,0.45159633,144.72,144.68,11.40124844]
[1768478453924,0.45159633,144.72,144.68,7.38750338]
[1768478454127,0.45159633,144.72,144.68,11.40124844]
[1768478454743,0.45159633,144.72,144.68,7.38750338]
[1768478454921,0.45159633,144.72,144.69,4.01374506]
[1768478455620,0.45159633,144.71,144.68,11.40124844]
[1768478458740,0.45159633,144.71,144.69,4.01374506]
[1768478460945,0.45159633,144.71,144.68,11.40124844]
[1768478462836,0.45159633,144.71,144.66,17.2814382]
[1768478462837,0.45159633,144.71,144.67,0.47604229]
[1768478463037,0.45159633,144.7,144.65,11.40284982]
[1768478463244,0.45159633,144.69,144.66,4.01374506]
[1768478463551,0.45159633,144.69,144.66,4.48978735]
[1768478463728,0.45159633,144.69,144.66,11.40253529]
[1768478464549,0.45159633,144.69,144.67,4.01374506]
[1768478466832,0.45159633,144.69,144.65,6.91310705]
[1768478467037,0.45159633,144.69,144.66,4.01374506]
[1768478467849,0.45159633,144.7,144.67,0.47604229]
[1768478468851,0.45159633,144.7,144.67,4.48978735]
[1768478470051,0.45159633,144.71,144.68,4.48978735]
[1768478471439,0.45159633,144.72,144.7,4.01374506]
[1768478471637,0.45159633,144.72,144.69,4.48978735]
[1768478472361,0.45159633,144.72,144.7,4.01374506]
[1768478473946,0.45159633,144.72,144.69,11.40103407]
[1768478474545,0.45159633,144.72,144.7,4.01374506]
[1768478475159,0.45159633,144.71,144.61,5.34408856]
[1768478475459,0.45159633,144.69,144.66,0.47604229]
[1768478475842,0.45159633,144.69,144.66,3.04359919]
[1768478476260,0.45159633,144.69,144.66,0.47604229]
[1768478476462,9.9301469,144.7,144.66,0.47604229]
[1768478476636,3.01915323,144.7,144.66,0.47604229]
[1768478476835,7.36245045,144.7,144.66,0.47604229]
[1768478477055,0.45159633,144.7,144.66,0.47604229]
[1768478477846,0.45159633,144.7,144.66,6.91242571]
[1768478478045,0.45159633,144.7,144.67,0.47604229]
[1768478479569,0.45159633,144.69,144.66,0.47604229]
[1768478479753,3.01915323,144.69,144.65,0.47604229]
[1768478480067,3.01915323,144.68,144.65,13.07604229]
[1768478480670,0.45159633,144.68,144.65,13.07604229]
[1768478482074,0.45159633,144.68,144.65,19.98925951]
[1768478482382,3.01915323,144.68,144.65,19.98925951]
[1768478482560,3.01915323,144.68,144.65,13.07604229]
[1768478482947,3.01915323,144.68,144.65,12.6]
[1768478483161,0.45159633,144.68,144.65,12.6]
[1768478483364,3.01915323,144.68,144.65,12.6]
[1768478483678,0.45159633,144.68,144.65,12.6]
[1768478485142,0.45159633,144.68,144.65,19.51314039]
[1768478485867,0.45159633,144.68,144.65,6.91314039]
[1768478486068,0.45159633,144.68,144.65,19.51314039]
[1768478487384,0.48360176,144.67,144.64,0.4963784]
[1768478487586,3.05115866,144.67,144.64,0.4963784]
[1768478489170,6.91195781,144.68,144.64,0.4963784]
[1768478489371,17.2751141,144.72,144.66,0.49763407]
[1768478489587,2.5675569,144.71,144.67,0.49763407]
[1768478490253,17.2751141,144.72,144.67,0.49763407]
[1768478490466,9.47809285,144.71,144.67,0.49763407]
[1768478490646,6.91053595,144.71,144.69,2.5675569]
[1768478490845,6.90894016,144.74,144.69,2.5375569]
[1768478491073,9.73802446,144.73,144.69,2.5375569]
[1768478491260,0.2050244,144.71,144.69,2.5375569]
[1768478492450,0.2050244,144.71,144.69,9.44887045]
[1768478492954,0.2050244,144.71,144.69,9.41887045]
[1768478493154,0.2050244,144.71,144.69,2.5075569]
[1768478493672,0.20501411,144.73,144.7,2.5675569]
[1768478493878,5.12609883,144.72,144.7,0.38365574]
[1768478494177,5.12609883,144.72,144.7,2.5675569]
[1768478494178,0.20500906,144.72,144.7,2.5675569]
[1768478494389,19.50910076,144.74,144.69,7.40890419]
[1768478494570,9.74067625,144.73,144.71,2.5675569]
[1768478494761,5.12672483,144.72,144.71,2.5675569]
[1768478495875,5.12737985,144.73,144.71,2.5675569]
[1768478496097,5.12737985,144.72,144.71,2.5675569]
[1768478496582,19.50910076,144.74,144.71,2.5675569]
[1768478496784,4.61524857,144.73,144.7,9.97571032]
[1768478497786,103.1,144.75,144.72,0.49763407]
[1768478498081,12.6,144.75,144.72,3.06519097]
[1768478498570,12.6,144.76,144.72,3.06519097]
[1768478498768,4.61607451,144.75,144.72,3.06519097]
[1768478498970,4.61607451,144.75,144.72,9.97484637]
[1768478499167,12.6,144.76,144.72,9.97484637]
[1768478499369,4.61538772,144.75,144.72,9.97484637]
[1768478503183,12.6,144.76,144.72,9.97484637]
[1768478503880,4.61318815,144.75,144.72,9.97484637]
[1768478504674,4.61318815,144.75,144.73,3.06519097]
[1768478504866,12.6,144.76,144.73,3.06519097]
[1768478505965,6.90776574,144.77,144.73,3.06519097]
[1768478506163,17.21204207,144.76,144.73,3.06519097]
[1768478506383,12.6,144.76,144.73,3.06519097]
[1768478506581,4.61169478,144.75,144.73,3.06519097]
[1768478506886,4.61169478,144.75,144.72,7.40728947]
[1768478507079,4.61169478,144.75,144.73,2.5675569]
[1768478510400,12.6,144.76,144.73,9.97453007]
[1768478512207,12.6,144.76,144.73,9.476896]
[1768478514202,12.6,144.76,144.73,9.94515338]
[1768478515106,12.6,144.76,144.73,7.37759648]
[1768478515293,12.6,144.76,144.73,9.94515338]
[1768478516008,6.90776574,144.77,144.73,9.94515338]
[1768478516302,19.50776574,144.77,144.73,9.94515338]
[1768478518910,19.50776574,144.77,144.73,7.37759648]
[1768478519914,6.90703135,144.78,144.73,9.94515338]
[1768478520085,12.6,144.77,144.73,9.94515338]
[1768478520999,19.50767372,144.77,144.73,9.94515338]
[1768478522009,19.50767372,144.77,144.73,3.03581428]
[1768478522196,0.02987619,144.76,144.73,3.00581428]
[1768478522393,0.02987619,144.76,144.73,9.91512854]
[1768478525512,103.12986559,144.79,144.76,0.46825738]
[1768478525809,12.62986559,144.78,144.75,3.03581428]
[1768478526006,12.62986559,144.78,144.75,0.46825738]
[1768478528407,103.12985535,144.79,144.76,0.46825738]
[1768478528711,115.72985535,144.79,144.76,0.43825738]
[1768478529184,0.05985202,144.78,144.75,2.5675569]
[1768478529392,12.65985202,144.79,144.75,2.5675569]
[1768478530400,12.65985202,144.79,144.75,9.47578217]
[1768478530593,12.65985202,144.79,144.76,0.46825738]
[1768478531509,0.05985202,144.79,144.76,0.46825738]
[1768478531695,12.65985202,144.79,144.76,0.46825738]
[1768478533631,0.05983906,144.8,144.77,0.46825738]
[1768478533823,0.05983906,144.8,144.77,0.43825738]
[1768478534618,0.05983906,144.8,144.76,6.90784207]
[1768478535205,19.59558399,144.81,144.76,9.47539897]
[1768478535408,19.59558399,144.81,144.76,10.91350726]
[1768478535597,19.59546297,144.81,144.76,10.91350726]
[1768478535798,0.0898328,144.81,144.78,0.46825738]
[1768478535993,0.0898328,144.81,144.78,0.43825738]
[1768478539615,0.0898328,144.81,144.78,7.34528028]
[1768478539822,0.0898328,144.81,144.78,7.31528028]
[1768478540203,0.14981778,144.82,144.78,6.9070229]
[1768478540522,0.14981778,144.82,144.78,10.91268809]
[1768478541808,4.25547719,144.83,144.79,0.49578687]
[1768478542016,4.25547719,144.83,144.79,0.44646697]
[1768478542320,0.49680068,144.82,144.78,10.91268809]
[1768478542525,0.1,144.83,144.79,4.00566519]
[1768478542526,0.59680068,144.83,144.79,4.00566519]
[1768478542720,0.59680068,144.83,144.79,1e-08]
[1768478542913,0.1,144.83,144.8,4.00566519]
[1768478543110,0.1,144.83,144.81,10.9108458]
[1768478543414,0.49680068,144.85,144.81,4.00566519]
[1768478544116,0.49680068,144.85,144.81,4.48897062]
[1768478544521,0.49680068,144.85,144.81,28.65815233]
[1768478545105,0.49680068,144.85,144.82,0.48330543]
[1768478545426,5.57562676,144.86,144.83,0.48330543]
[1768478545611,5.57562676,144.86,144.83,0.45330543]
[1768478546618,5.57562676,144.86,144.83,7.35774907]
[1768478548203,9.58129195,144.86,144.83,7.35774907]
[1768478548640,9.58129195,144.86,144.83,0.45330543]
[1768478549740,5.57562676,144.86,144.83,0.45330543]
[1768478549939,9.58129195,144.86,144.83,0.45330543]
[1768478552425,0.46664112,144.84,144.8,7.38892679]
[1768478552609,0.46664112,144.81,144.78,19.99014309]
[1768478552932,4.47230631,144.82,144.79,0.48330543]
[1768478553307,4.00566519,144.82,144.79,0.48330543]
[1768478553520,0.46664112,144.83,144.8,0.48330543]
[1768478554331,0.46664112,144.83,144.8,7.38921712]
[1768478555210,19.50387857,144.85,144.81,0.48330543]
[1768478555211,4.47230631,144.84,144.81,0.48330543]
[1768478555410,0.46664112,144.84,144.81,0.48330543]
[1768478555623,4.47230631,144.84,144.81,0.48330543]
[1768478560104,0.46664112,144.84,144.81,0.48330543]
[1768478562224,11.37659142,144.84,144.81,0.48330543]
[1768478562617,6.90388194,144.85,144.82,0.48330543]
[1768478562823,0.46664112,144.85,144.82,0.45330543]
[1768478565340,4.47230631,144.85,144.82,0.45330543]
[1768478565538,0.46664112,144.84,144.81,7.38889045]
[1768478565831,4.47230631,144.84,144.81,0.48330543]
[1768478567639,7.37036703,144.85,144.82,0.48330543]
[1768478567819,0.46664112,144.85,144.82,0.45330543]
[1768478568014,4.47230631,144.85,144.82,0.45330543]
[1768478569435,11.37602217,144.85,144.82,0.45330543]
[1768478571242,0.46664112,144.85,144.82,0.45330543]
[1768478573726,0.46664112,144.85,144.82,0.42330543]
[1768478577338,7.49463547,144.86,144.82,0.42330543]
[1768478577537,11.50030066,144.86,144.82,0.42330543]
[1768478577931,0.59133321,144.86,144.83,0.47431131]
[1768478580347,7.49458094,144.86,144.83,0.47431131]
[1768478580931,4.4969984,144.85,144.81,0.47431131]
[1768478581154,0.49133321,144.85,144.81,0.47431131]
[1768478581735,0.49133321,144.85,144.82,0.47431131]
[1768478583143,7.3951843,144.85,144.82,0.47431131]
[1768478587167,7.4947354,144.86,144.83,0.47431131]
[1768478587369,7.4947354,144.86,144.84,0.23509151]
[1768478587370,0.1,144.86,144.84,0.23509151]
[1768478587541,0.1,144.86,144.84,4.2107567]
[1768478588659,0.1,144.86,144.84,11.11478593]
[1768478593171,0.1,144.86,144.85,4.00566519]
[1768478593367,0.1,144.87,144.85,4.00566519]
[1768478596169,0.1,144.87,144.85,10.90922933]
[1768478597481,0.1,144.87,144.85,2.56046001]
[1768478597861,0.1,144.87,144.86,2.56046001]
[1768478598184,0.49133321,144.88,144.86,2.56046001]
[1768478598366,0.49133321,144.88,144.83,24.1653085]
[1768478598367,7.39362096,144.88,144.83,24.1653085]
[1768478598569,0.49133321,144.87,144.85,2.56046001]
[1768478599081,6.90228775,144.88,144.85,2.56046001]
[1768478599380,0.49133321,144.88,144.85,2.56046001]
[1768478599586,0.49133321,144.88,144.84,9.46431085]
[1768478600861,6.9023925,144.88,144.84,6.90385084]
[1768478601061,0.48993401,144.87,144.84,6.90385084]
[1768478603181,0.48993401,144.87,144.84,9.46431085]
[1768478603479,0.58993401,144.89,144.85,2.56046001]
[1768478603686,0.58993401,144.89,144.86,2.56046001]
[1768478604263,0.58993401,144.89,144.85,2.56046001]
[1768478604684,0.58993401,144.89,144.85,15.16046001]
[1768478605075,0.58993401,144.89,144.86,6.90321689]
[1768478605275,0.58993401,144.89,144.86,9.4636769]
[1768478607298,0.58993401,144.89,144.86,6.90321689]
[1768478611588,0.58993401,144.89,144.85,12.6]
[1768478611589,0.48599624,144.88,144.85,12.6]
[1768478615694,0.48599624,144.87,144.83,6.90441417]
[1768478615876,0.48599624,144.87,144.82,15.16046001]
[1768478616075,0.48599624,144.87,144.83,6.90463767]
[1768478617077,0.48599624,144.86,144.83,6.90463767]
[1768478618480,0.48599624,144.87,144.83,9.46509768]
[1768478619599,0.48599624,144.88,144.83,9.46509768]
[1768478620275,0.58599624,144.89,144.86,2.56046001]
[1768478620476,0.58599624,144.89,144.85,2.56046001]
[1768478620677,0.58599624,144.89,144.83,24.16625473]
[1768478620897,0.58599624,144.89,144.85,2.56046001]
[1768478621799,0.58599624,144.89,144.86,2.56046001]
[1768478622480,0.1,144.89,144.87,2.56046001]
[1768478622878,0.1,144.89,144.86,2.56046001]
[1768478623609,0.1,144.89,144.85,19.50322076]
[1768478623976,0.1,144.89,144.87,2.56046001]
[1768478624804,0.1,144.89,144.88,2.56046001]
[1768478624973,0.1,144.9,144.88,2.56046001]
[1768478625174,0.1,144.9,144.87,9.46308229]
[1768478625600,0.1,144.9,144.87,6.90262228]
[1768478625805,0.1,144.9,144.87,9.46308229]
[1768478626608,0.1,144.9,144.88,2.56046001]
[1768478626780,0.1,144.91,144.86,24.16125913]
[1768478627101,0.58599624,144.91,144.88,2.56046001]
[1768478635484,0.1,144.91,144.88,9.46271277]
[1768478636087,0.1,144.91,144.88,2.56046001]
[1768478636288,0.56827147,144.91,144.88,2.56046001]
[1768478637905,0.1,144.91,144.88,2.56046001]
[1768478638804,0.56827147,144.91,144.88,2.56046001]
[1768478639790,0.1,144.91,144.88,2.56046001]
[1768478640412,0.1,144.91,144.88,9.46254778]
[1768478640591,0.1,144.92,144.89,2.56046001]
[1768478642187,0.56827147,144.92,144.88,19.50208777]
[1768478642390,0.56827147,144.92,144.89,2.56046001]
[1768478642683,7.46872769,144.92,144.88,19.50208777]
[1768478642889,0.46827147,144.91,144.88,15.16046001]
[1768478643104,0.46827147,144.91,144.88,12.6]
[1768478643792,0.46827147,144.91,144.88,15.16046001]
[1768478643994,7.36958271,144.9,144.88,12.6]
[1768478644192,0.46827147,144.9,144.88,12.6]
[1768478645416,0.46827147,144.89,144.86,2.56046001]
[1768478645600,0.40827148,144.89,144.85,15.63814404]
[1768478645995,7.31006829,144.89,144.85,22.54177964]
[1768478646912,6.90179681,144.89,144.85,22.54177964]
[1768478647614,0.46827147,144.88,144.85,22.54177964]
[1768478647795,0.46827147,144.88,144.85,15.63814404]
[1768478649516,0.46827147,144.89,144.86,0.49768403]
[1768478649689,0.46827147,144.89,144.86,3.05814404]
[1768478650594,0.46827147,144.89,144.87,0.49768403]
[1768478652030,0.56827147,144.92,144.89,0.49768403]
[1768478652315,0.56827147,144.92,144.88,3.05814404]
[1768478652514,0.46827147,144.9,144.86,7.40068595]
[1768478652826,0.46827147,144.9,144.86,0.49768403]
[1768478653003,2.56046001,144.89,144.85,0.49768403]
[1768478653202,0.46827147,144.88,144.85,13.07768403]
[1768478656525,0.46827147,144.88,144.85,15.63814404]
[1768478656727,0.46827147,144.88,144.85,22.54179222]
[1768478657425,0.46827147,144.88,144.85,23.98198485]
[1768478658533,0.46827147,144.89,144.86,11.40133886]
[1768478660218,0.46827147,144.88,144.85,19.98126846]
[1768478660430,6.90192785,144.89,144.81,0.49768403]
[1768478660431,0.46827147,144.86,144.81,0.49768403]
[1768478660738,0.46827147,144.85,144.82,7.402526]
[1768478661530,0.40827143,144.85,144.82,11.40317864]
[1768478663227,10.90309374,144.88,144.83,4.49829628]
[1768478663428,5.64132836,144.87,144.83,4.49829628]
[1768478663611,5.64132836,144.86,144.83,4.49829628]
[1768478663811,5.12730309,144.85,144.83,4.49829628]
[1768478664031,0.51402527,144.86,144.83,4.49829628]
[1768478664232,0.51402527,144.87,144.84,4.49634785]
[1768478664526,0.51402527,144.88,144.84,11.40014721]
[1768478664730,0.51402527,144.88,144.85,0.49569521]
[1768478674142,0.51402527,144.88,144.85,7.39929143]
[1768478674439,6.90200036,144.89,144.85,7.39929143]
[1768478674440,7.41602563,144.89,144.86,0.49569521]
[1768478674823,0.51402527,144.88,144.86,0.49569521]
[1768478675344,0.51402527,144.88,144.85,7.39929143]
[1768478676128,5.12175096,144.87,144.85,7.39929143]
[1768478676329,4.00065264,144.91,144.86,13.49788601]
[1768478676533,0.1,144.92,144.88,0.49569521]
[1768478676732,7.00039434,144.92,144.88,0.49569521]
[1768478677528,7.00039434,144.92,144.88,4.49634785]
[1768478677728,7.00039434,144.92,144.89,0.49569521]
[1768478678136,7.00039434,144.92,144.88,0.49569521]
[1768478678334,7.41245599,144.92,144.88,0.49569521]
[1768478678528,0.41206165,144.91,144.87,6.90245542]
[1768478678746,0.41206165,144.9,144.87,7.39815063]
[1768478678944,0.41206165,144.9,144.86,0.49569521]
[1768478679250,0.4118848,144.89,144.86,0.49569521]
[1768478681333,4.41253744,144.89,144.85,7.399207]
[1768478681552,0.41153717,144.88,144.85,7.399207]
[1768478687554,4.41290774,144.89,144.85,7.399207]
[1768478687752,5.12026754,144.88,144.85,7.399207]
[1768478687960,4.41290774,144.89,144.85,7.399207]
[1768478688140,5.12037705,144.88,144.85,7.399207]
[1768478688343,4.41290774,144.89,144.85,7.399207]
[1768478688546,5.12071313,144.88,144.85,7.399207]
[1768478688751,4.41290774,144.89,144.85,7.399207]
[1768478688962,0.41248356,144.87,144.84,13.09569521]
[1768478689163,0.41248356,144.86,144.83,6.90454795]
[1768478689968,0.41248356,144.86,144.83,7.40024316]
[1768478690161,0.41259583,144.87,144.84,6.90408235]
[1768478690848,0.41259583,144.87,144.84,7.39814964]
[1768478691056,0.41259583,144.87,144.84,11.39880228]
[1768478691369,0.41281651,144.88,144.84,7.39814964]
[1768478691535,0.41281651,144.88,144.84,11.39880228]
[1768478692244,0.41281651,144.88,144.85,0.49406729]
[1768478693350,0.41281651,144.88,144.85,7.39773958]
[1768478694158,7.31465996,144.9,144.86,0.49406729]
[1768478694548,0.41313812,144.89,144.86,0.49406729]
[1768478695560,11.31541735,144.9,144.86,0.49406729]
[1768478695945,0.41334642,144.89,144.86,0.49406729]
[1768478699947,11.31532793,144.91,144.87,0.49406729]
[1768478700149,7.31467529,144.91,144.87,0.49406729]
[1768478701552,7.31467529,144.91,144.87,4.49471993]
[1768478702256,7.41430497,144.92,144.88,0.49406729]
[1768478702463,7.00036178,144.92,144.89,0.49406729]
[1768478703450,6.99970239,144.94,144.92,0.49406729]
[1768478703656,6.99970239,144.94,144.92,0.09415015]
[1768478704161,6.99970239,144.94,144.9,4.00065264]
[1768478704350,7.47928636,144.94,144.9,4.00065264]
[1768478705469,7.47928636,144.94,144.91,4.00065264]
[1768478705661,7.47912875,144.94,144.91,4.00065264]
[1768478706056,7.47912875,144.94,144.91,4.49471993]
[1768478706567,7.47912875,144.94,144.91,0.49406729]
[1768478707565,0.47958397,144.93,144.9,0.49406729]
[1768478713682,0.47958397,144.93,144.86,4.49471993]
[1768478713683,0.47958397,144.9,144.86,4.49471993]
[1768478713864,0.41958392,144.9,144.86,13.07406729]
[1768478714372,7.3211669,144.9,144.86,17.07471993]
[1768478717162,7.3211669,144.9,144.86,13.07406729]
[1768478717355,7.3211669,144.9,144.86,17.07471993]
[1768478718054,7.38071767,144.91,144.87,0.49406729]
[1768478718260,0.47958397,144.91,144.88,0.49406729]
[1768478718481,7.38011957,144.92,144.89,0.49406729]
[1768478723377,0.47958397,144.92,144.89,0.49406729]
[1768478724284,7.38001247,144.92,144.89,0.49406729]
[1768478724986,0.46552167,144.91,144.88,7.38844293]
[1768478725188,0.46552167,144.91,144.88,9.94802932]
[1768478725386,7.36595017,144.92,144.89,0.48649741]
[1768478725681,6.9004285,144.92,144.89,0.48649741]
[1768478726263,9.92512043,144.93,144.89,0.48649741]
[1768478726467,0.56552167,144.94,144.91,0.48649741]
[1768478727481,7.4650705,144.94,144.91,0.48649741]
[1768478728382,0.1,144.94,144.92,0.48649741]
[1768478728582,0.1,144.94,144.92,0.45649744]
[1768478729091,0.1,144.94,144.92,3.01608383]
[1768478729881,0.1,144.94,144.93,2.55958639]
[1768478730067,0.1,144.94,144.92,2.55958639]
[1768478730475,0.1,144.94,144.93,0.48649741]
[1768478731170,6.99950208,144.94,144.92,0.48649741]
[1768478731390,7.46502375,144.94,144.91,0.48649741]
[1768478733077,7.46502375,144.94,144.91,3.0460838]
[1768478733078,0.56552167,144.94,144.91,3.0460838]
[1768478733700,0.1,144.94,144.93,0.48649741]
[1768478738108,0.46552167,144.93,144.9,0.48649741]
[1768478739595,7.36560137,144.93,144.9,0.48649741]
[1768478743002,0.46552167,144.92,144.88,0.48649741]
[1768478744292,7.36605845,144.92,144.88,0.48649741]
[1768478744489,7.36605845,144.92,144.88,3.0460838]
[1768478744888,7.36605845,144.92,144.88,0.48649741]
[1768478745109,7.36605845,144.92,144.88,3.0460838]
[1768478745299,7.36605845,144.92,144.88,0.48649741]
[1768478745500,7.36605845,144.92,144.88,3.0460838]
[1768478747815,0.46552167,144.92,144.89,3.0460838]
[1768478748298,0.46552167,144.92,144.89,0.48649741]
[1768478748607,0.46552167,144.92,144.89,3.0460838]
[1768478749016,0.46552167,144.92,144.89,0.48649741]
[1768478751107,7.36595291,144.92,144.89,0.48649741]
[1768478751414,7.36595291,144.92,144.88,6.90225364]
[1768478751415,0.4893663,144.91,144.88,0.50951275]
[1768478751626,0.4893663,144.9,144.87,12.58]
[1768478752113,7.39093404,144.9,144.87,12.58]
[1768478752311,7.39093404,144.9,144.87,13.08951275]
[1768478753218,0.4893663,144.9,144.87,22.55175897]
[1768478753520,7.39034274,144.91,144.88,0.50951275]
[1768478754119,0.4893663,144.91,144.88,0.50951275]
[1768478754619,0.4893663,144.9,144.87,13.08951275]
[1768478755424,0.4893663,144.9,144.87,12.58]
[1768478756027,6.90104175,144.91,144.88,0.50951275]
[1768478756324,0.4893663,144.9,144.87,13.08951275]
[1768478756526,0.4893663,144.89,144.87,12.58]
[1768478762718,0.4893663,144.88,144.84,0.50951275]
[1768478763229,0.4893663,144.88,144.84,7.4135688]
[1768478763521,0.4893663,144.88,144.85,7.41320299]
[1768478765128,0.4893663,144.88,144.85,0.50951275]
[1768478769824,0.4893663,144.88,144.85,3.06909914]
[1768478770029,7.39118429,144.89,144.86,0.50951275]
[1768478770617,0.4893663,144.88,144.85,0.50951275]
[1768478772832,0.4893663,144.86,144.83,0.50951275]
[1768478773733,7.39268246,144.86,144.83,0.50951275]
[1768478774030,6.89268246,144.86,144.83,0.50951275]
[1768478774647,6.89268246,144.86,144.83,3.06909914]
[1768478774942,6.90274038,144.87,144.84,0.50951275]
[1768478775839,7.1939974,144.87,144.84,0.50951275]
[1768478776658,7.1939974,144.87,144.83,3.06909914]
[1768478777548,7.1939974,144.87,144.84,0.50951275]
[1768478780812,6.90274038,144.87,144.84,0.50951275]
[1768478781539,7.19424263,144.87,144.84,0.50951275]
[1768478782617,0.29158703,144.88,144.84,0.50951275]
[1768478783538,7.19402571,144.88,144.84,0.50951275]
[1768478785148,6.90243868,144.88,144.85,0.48663839]
[1768478785932,7.19395826,144.89,144.85,0.48663839]
[1768478789339,6.90196171,144.89,144.86,0.48663839]
[1768478789835,7.19419286,144.89,144.86,0.48663839]
[1768478792232,6.90196171,144.89,144.86,0.48663839]
[1768478793153,0.29245776,144.9,144.87,0.48663839]
[1768478793154,6.90138272,144.9,144.87,0.48663839]
[1768478798259,0.29288808,144.9,144.87,0.48663839]
[1768478799654,7.19439783,144.9,144.87,0.48663839]
[1768478803660,0.29322458,144.89,144.86,0.48663839]
[1768478803882,7.19506688,144.89,144.86,0.48663839]
[1768478805966,6.9018423,144.89,144.86,0.48663839]
[1768478807156,6.9014309,144.9,144.86,4.00193227]
[1768478807356,6.9014309,144.9,144.87,0.48663839]
[1768478807776,7.36879292,144.9,144.87,0.48663839]
[1768478808879,7.36916694,144.89,144.86,0.48663839]
[1768478811964,0.49621167,144.88,144.86,0.48663839]
[1768478812369,7.39801659,144.89,144.86,0.48663839]
[1768478816260,0.49621167,144.89,144.86,0.48663839]
[1768478822873,7.39771512,144.9,144.86,4.48857066]
[1768478823492,7.39771512,144.9,144.87,0.4839497]
[1768478824290,6.90150345,144.9,144.87,0.4839497]
[1768478824790,7.39771512,144.9,144.87,0.4839497]
[1768478825389,24.15348629,144.91,144.87,4.48588197]
[1768478825582,24.64969796,144.91,144.88,0.4839497]
[1768478826577,7.39704667,144.91,144.88,0.4839497]
[1768478826770,0.49621167,144.91,144.88,4.48588197]
[1768478829489,7.39705206,144.91,144.88,4.48588197]
[1768478831181,0.49621167,144.92,144.89,0.4839497]
[1768478831492,0.49621167,144.9,144.87,0.4839497]
[1768478832694,7.39788111,144.9,144.87,0.4839497]
[1768478834098,0.49621167,144.89,144.85,13.0639497]
[1768478834300,0.49621167,144.88,144.85,13.0639497]
[1768478834501,0.49621167,144.88,144.85,0.4839497]
[1768478836301,7.39868014,144.88,144.85,0.4839497]
[1768478838207,0.49621167,144.87,144.81,0.4839497]
[1768478838406,0.49621167,144.85,144.79,0.4839497]
[1768478838572,4.00193227,144.84,144.8,0.4839497]
[1768478838777,0.49621167,144.83,144.8,0.4839497]
[1768478839287,4.49814394,144.83,144.8,0.4839497]
[1768478840303,6.90464682,144.83,144.8,4.48588197]
[1768478840505,7.40085849,144.83,144.8,0.4839497]
[1768478844195,7.40085849,144.83,144.8,3.04671685]
[1768478845889,7.29085157,144.83,144.8,3.04671685]
[1768478846705,7.29085157,144.83,144.8,0.4839497]
[1768478848612,7.29085157,144.83,144.8,3.04671685]
[1768478848807,7.29085157,144.83,144.81,0.50525594]
[1768478850021,7.29085157,144.83,144.8,3.06802309]
[1768478850700,0.49487696,144.85,144.82,0.50525594]
[1768478851512,7.39876047,144.85,144.82,0.50525594]
[1768478855517,6.90388351,144.85,144.82,0.50525594]
[1768478855823,7.39829621,144.86,144.82,3.06802309]
[1768478856031,7.39829621,144.86,144.83,0.50525594]
[1768478856323,0.49487696,144.86,144.83,0.50525594]